Workbook

Sheet Feuil1
B2: f1 en Hz | C2: U1max en V
B3: 465 | C3: =AA3/10 -> 4.8 | AA3: 48
AA4: 58
B5: 1000 | C5: 10
B21: 0 | C21: 0
B25: f2 en Hz | C25: U2max en V
B26: 629 | C26: =AA4/10 -> 5.8
B29: 1000 | C29: 10
B45: 0 | C45: 0

Sheet Feuil2 (hidden)
A1: graphe temporel u1 | D1: graphe fréquentiel u1 | G1: graphe temporel u2 | J1: graphe fréquentiel u2 | M1: graphe temporel somme
A2: dt= | B2: =0.00192042*1/f_2+0.000007944 -> 1.099713196e-05
A3: t | B3: u1 | D3: f1 | E3: U1 | H3: u2 | J3: f2 | K3: U2 | M3: u1+u2
A4: 0 | B4: =IF(f_1=0,U1max,U1max*SIN(2*PI()*f_1*t)) -> 0 | D4: =f_1 -> 465 | E4: 0 | H4: =U2max*SIN(2*PI()*f_2*t) -> 0 | J4: =f_2 -> 629 | K4: 0 | M4: =u_1+u_2 -> 0
A5: =A4+dt_1 -> 1.099713196e-05 | B5: 0.1541980099 | D5: =f_1 -> 465 | E5: =U1max -> 4.8 | H5: 0.2520003874 | J5: =f_2 -> 629 | K5: =U2max -> 5.8 | M5: 0.4061983973
A6: 2.199426391e-05 | B6: 0.3082368481 | H6: 0.5035248342 | M6: 0.8117616823
A7: 3.299139587e-05 | B7: 0.4619575071 | H7: 0.7540982987 | M7: 1.216055806
A8: 4.398852782e-05 | B8: 0.615201308 | H8: 1.003247535 | M8: 1.618448843
A9: 5.498565978e-05 | B9: 0.7678100641 | H9: 1.250501988 | M9: 2.018312052
A10: 6.598279173e-05 | B10: 0.9196262441 | H10: 1.49539468 | M10: 2.415020924
A11: 7.697992369e-05 | B11: 1.070493135 | H11: 1.737463095 | M11: 2.80795623
A12: 8.797705564e-05 | B12: 1.220255004 | H12: 1.976250049 | M12: 3.196505053
A13: 9.89741876e-05 | B13: 1.368757257 | H13: 2.211304558 | M13: 3.580061816
A14: 0.0001099713196 | B14: 1.515846604 | H14: 2.442182687 | M14: 3.958029291
A15: 0.0001209684515 | B15: 1.66137121 | H15: 2.668448387 | M15: 4.329819597
A16: 0.0001319655835 | B16: 1.805180857 | H16: 2.88967432 | M16: 4.694855177
A17: 0.0001429627154 | B17: 1.947127096 | H17: 3.10544267 | M17: 5.052569766
A18: 0.0001539598474 | B18: 2.087063402 | H18: 3.315345925 | M18: 5.402409327
A19: 0.0001649569793 | B19: 2.224845326 | H19: 3.518987651 | M19: 5.743832977
A20: 0.0001759541113 | B20: 2.360330642 | H20: 3.71598324 | M20: 6.076313882
A21: 0.0001869512432 | B21: 2.493379493 | H21: 3.905960637 | M21: 6.39934013
A22: 0.0001979483752 | B22: 2.623854541 | H22: 4.08856104 | M22: 6.712415581
A23: 0.0002089455072 | B23: 2.7516211 | H23: 4.263439581 | M23: 7.015060681
A24: 0.0002199426391 | B24: 2.876547283 | H24: 4.430265977 | M24: 7.30681326
A25: 0.0002309397711 | B25: 2.998504136 | H25: 4.588725149 | M25: 7.587229285
A26: 0.000241936903 | B26: 3.117365766 | H26: 4.738517825 | M26: 7.85588359
A27: 0.000252934035 | B27: 3.233009478 | H27: 4.879361097 | M27: 8.112370576
A28: 0.0002639311669 | B28: 3.3453159 | H28: 5.010988964 | M28: 8.356304863
A29: 0.0002749282989 | B29: 3.4541691 | H29: 5.133152825 | M29: 8.587321925
A30: 0.0002859254308 | B30: 3.559456717 | H30: 5.245621955 | M30: 8.805078672
A31: 0.0002969225628 | B31: 3.661070065 | H31: 5.348183941 | M31: 9.009254005
A32: 0.0003079196948 | B32: 3.758904253 | H32: 5.440645078 | M32: 9.199549331
A33: 0.0003189168267 | B33: 3.852858293 | H33: 5.522830739 | M33: 9.375689032
A34: 0.0003299139587 | B34: 3.942835199 | H34: 5.594585704 | M34: 9.537420903
A35: 0.0003409110906 | B35: 4.028742092 | H35: 5.655774454 | M35: 9.684516546
A36: 0.0003519082226 | B36: 4.110490294 | H36: 5.706281425 | M36: 9.816771719
A37: 0.0003629053545 | B37: 4.187995421 | H37: 5.746011225 | M37: 9.934006646
A38: 0.0003739024865 | B38: 4.261177467 | H38: 5.77488882 | M38: 10.03606629
A39: 0.0003848996184 | B39: 4.329960889 | H39: 5.79285967 | M39: 10.12282056
A40: 0.0003958967504 | B40: 4.394274686 | H40: 5.799889835 | M40: 10.19416452
A41: 0.0004068938824 | B41: 4.45405247 | H41: 5.795966036 | M41: 10.25001851
A42: 0.0004178910143 | B42: 4.509232534 | H42: 5.781095684 | M42: 10.29032822
A43: 0.0004288881463 | B43: 4.559757918 | H43: 5.755306865 | M43: 10.31506478
A44: 0.0004398852782 | B44: 4.605576468 | H44: 5.718648284 | M44: 10.32422475
A45: 0.0004508824102 | B45: 4.646640887 | H45: 5.671189177 | M45: 10.31783006
A46: 0.0004618795421 | B46: 4.682908785 | H46: 5.613019177 | M46: 10.29592796
A47: 0.0004728766741 | B47: 4.714342726 | H47: 5.544248147 | M47: 10.25859087
A48: 0.000483873806 | B48: 4.740910261 | H48: 5.465005972 | M48: 10.20591623
A49: 0.000494870938 | B49: 4.762583967 | H49: 5.375442311 | M49: 10.13802628
A50: 0.00050586807 | B50: 4.779341469 | H50: 5.275726321 | M50: 10.05506779
A51: 0.0005168652019 | B51: 4.79116547 | H51: 5.166046328 | M51: 9.957211799
A52: 0.0005278623339 | B52: 4.798043765 | H52: 5.046609482 | M52: 9.844653247
A53: 0.0005388594658 | B53: 4.799969254 | H53: 4.917641354 | M53: 9.717610608
A54: 0.0005498565978 | B54: 4.796939948 | H54: 4.779385523 | M54: 9.576325471
A55: 0.0005608537297 | B55: 4.788958976 | H55: 4.632103104 | M55: 9.42106208
A56: 0.0005718508617 | B56: 4.776034575 | H56: 4.476072262 | M56: 9.252106837
A57: 0.0005828479936 | B57: 4.758180086 | H57: 4.311587686 | M57: 9.069767772
A58: 0.0005938451256 | B58: 4.735413941 | H58: 4.138960028 | M58: 8.874373969
A59: 0.0006048422576 | B59: 4.707759639 | H59: 3.958515323 | M59: 8.666274961
A60: 0.0006158393895 | B60: 4.675245727 | H60: 3.770594366 | M60: 8.445840093
A61: 0.0006268365215 | B61: 4.637905767 | H61: 3.575552076 | M61: 8.213457843
A62: 0.0006378336534 | B62: 4.595778304 | H62: 3.373756818 | M62: 7.969535123
A63: 0.0006488307854 | B63: 4.548906824 | H63: 3.165589714 | M63: 7.714496539
A64: 0.0006598279173 | B64: 4.497339711 | H64: 2.951443919 | M64: 7.44878363
A65: 0.0006708250493 | B65: 4.441130195 | H65: 2.731723878 | M65: 7.172854072
A66: 0.0006818221812 | B66: 4.380336298 | H66: 2.506844566 | M66: 6.887180864
A67: 0.0006928193132 | B67: 4.315020776 | H67: 2.277230701 | M67: 6.592251477
A68: 0.0007038164452 | B68: =IF(f_1=0,U1max,U1max*SIN(2*PI()*f_1*t)) -> 4.24525105 | H68: =U2max*SIN(2*PI()*f_2*t) -> 2.043315944 | M68: =u_1+u_2 -> 6.288566994
A69: =A68+dt_1 -> 0.0007148135771 | B69: 4.171099141 | H69: 1.805542078 | M69: 5.976641219
A70: 0.0007258107091 | B70: 4.092641592 | H70: 1.564358175 | M70: 5.656999767
A71: 0.000736807841 | B71: 4.009959392 | H71: 1.320219746 | M71: 5.330179138
A72: 0.000747804973 | B72: 3.92313789 | H72: 1.073587884 | M72: 4.996725774
A73: 0.0007588021049 | B73: 3.832266708 | H73: 0.8249283896 | M73: 4.657195097
A74: 0.0007697992369 | B74: 3.737439648 | H74: 0.5747108943 | M74: 4.312150542
A75: 0.0007807963688 | B75: 3.638754595 | H75: 0.3234079711 | M75: 3.962162566
A76: 0.0007917935008 | B76: 3.536313419 | H76: 0.07149424331 | M76: 3.607807662
A77: 0.0008027906328 | B77: 3.430221864 | H77: -0.1805545121 | M77: 3.249667352
A78: 0.0008137877647 | B78: 3.320589445 | H78: -0.4322622631 | M78: 2.888327181
A79: 0.0008247848967 | B79: 3.207529328 | H79: -0.683153622 | M79: 2.524375706
A80: 0.0008357820286 | B80: 3.091158223 | H80: -0.9327547425 | M80: 2.15840348
A81: 0.0008467791606 | B81: 2.971596253 | H81: -1.180594216 | M81: 1.791002037
A82: 0.0008577762925 | B82: 2.848966837 | H82: -1.426203959 | M82: 1.422762877
A83: 0.0008687734245 | B83: 2.723396559 | H83: -1.669120102 | M83: 1.054276456
A84: 0.0008797705564 | B84: 2.59501504 | H84: -1.908883862 | M84: 0.6861311789
A85: 0.0008907676884 | B85: 2.463954804 | H85: -2.145042407 | M85: 0.3189123971
A86: 0.0009017648203 | B86: 2.330351137 | H86: -2.377149717 | M86: -0.04679858043
A87: 0.0009127619523 | B87: 2.194341952 | H87: -2.604767423 | M87: -0.4104254711
A88: 0.0009237590843 | B88: 2.056067646 | H88: -2.827465634 | M88: -0.7713979884
A89: 0.0009347562162 | B89: 1.915670953 | H89: -3.044823752 | M89: -1.129152799
A90: 0.0009457533482 | B90: 1.773296799 | H90: -3.256431263 | M90: -1.483134464
A91: 0.0009567504801 | B91: 1.629092149 | H91: -3.461888514 | M91: -1.832796365
A92: 0.0009677476121 | B92: 1.48320586 | H92: -3.660807468 | M92: -2.177601608
A93: 0.000978744744 | B93: 1.335788524 | H93: -3.852812438 | M93: -2.517023914
A94: 0.000989741876 | B94: 1.186992313 | H94: -4.037540792 | M94: -2.850548479
A95: 0.001000739008 | B95: 1.036970823 | H95: -4.214643645 | M95: -3.177672821
A96: 0.00101173614 | B96: 0.8858789144 | H96: -4.383786509 | M96: -3.497907595
A97: 0.001022733272 | B97: 0.7338725523 | H97: -4.544649934 | M97: -3.810777382
A98: 0.001033730404 | B98: 0.5811086464 | H98: -4.696930105 | M98: -4.115821459
A99: 0.001044727536 | B99: 0.427744888 | H99: -4.840339418 | M99: -4.41259453
A100: 0.001055724668 | B100: 0.2739395875 | H100: -4.974607023 | M100: -4.700667435
A101: 0.0010667218 | B101: 0.1198515115 | H101: -5.099479335 | M101: -4.979627823
A102: 0.001077718932 | B102: -0.03436028189 | H102: -5.214720514 | M102: -5.249080796
A103: 0.001088716064 | B103: -0.1885366067 | H103: -5.32011291 | M103: -5.508649517
A104: 0.001099713196 | B104: -0.3425183136 | H104: -5.415457474 | M104: -5.757975787
A105: 0.001110710328 | B105: -0.4961464541 | H105: -5.500574132 | M105: -5.996720586
A106: 0.001121707459 | B106: -0.6492624448 | H106: -5.57530213 | M106: -6.224564575
A107: 0.001132704591 | B107: -0.8017082308 | H107: -5.639500333 | M107: -6.441208564
A108: 0.001143701723 | B108: -0.9533264492 | H108: -5.693047492 | M108: -6.646373941
A109: 0.001154698855 | B109: -1.103960591 | H109: -5.735842475 | M109: -6.839803066
A110: 0.001165695987 | B110: -1.253455164 | H110: -5.767804458 | M110: -7.021259622
A111: 0.001176693119 | B111: -1.401655851 | H111: -5.788873076 | M111: -7.190528927
A112: 0.001187690251 | B112: -1.548409671 | H112: -5.799008537 | M112: -7.347418209
A113: 0.001198687383 | B113: -1.693565137 | H113: -5.7981917 | M113: -7.491756837
A114: 0.001209684515 | B114: -1.836972411 | H114: -5.786424107 | M114: -7.623396518
A115: 0.001220681647 | B115: -1.978483461 | H115: -5.763727982 | M115: -7.742211443
A116: 0.001231678779 | B116: -2.11795221 | H116: -5.730146191 | M116: -7.848098402
A117: 0.001242675911 | B117: -2.255234692 | H117: -5.685742159 | M117: -7.940976851
A118: 0.001253673043 | B118: -2.390189196 | H118: -5.630599748 | M118: -8.020788944
A119: 0.001264670175 | B119: -2.522676414 | H119: -5.564823103 | M119: -8.087499517
A120: 0.001275667307 | B120: -2.652559586 | H120: -5.488536454 | M120: -8.14109604
A121: 0.001286664439 | B121: -2.779704639 | H121: -5.40188388 | M121: -8.181588519
A122: 0.001297661571 | B122: -2.903980327 | H122: -5.305029036 | M122: -8.209009363
A123: 0.001308658703 | B123: -3.025258365 | H123: -5.198154848 | M123: -8.223413213
A124: 0.001319655835 | B124: -3.143413565 | H124: -5.081463164 | M124: -8.224876728
A125: 0.001330652967 | B125: -3.258323958 | H125: -4.955174373 | M125: -8.213498331
A126: 0.001341650099 | B126: -3.36987093 | H126: -4.81952699 | M126: -8.18939792
A127: 0.001352647231 | B127: -3.477939334 | H127: -4.674777207 | M127: -8.152716541
A128: 0.001363644362 | B128: -3.582417616 | H128: -4.521198406 | M128: -8.103616022
A129: 0.001374641494 | B129: -3.683197929 | H129: -4.359080641 | M129: -8.04227857
A130: 0.001385638626 | B130: -3.780176241 | H130: -4.188730098 | M130: -7.968906339
A131: 0.001396635758 | B131: -3.873252445 | H131: -4.010468509 | M131: -7.883720954
A132: 0.00140763289 | B132: =IF(f_1=0,U1max,U1max*SIN(2*PI()*f_1*t)) -> -3.962330464 | H132: =U2max*SIN(2*PI()*f_2*t) -> -3.824632548 | M132: =u_1+u_2 -> -7.786963012
A133: =A132+dt_1 -> 0.001418630022 | B133: -4.047318346 | H133: -3.631573193 | M133: -7.678891539
A134: 0.001429627154 | B134: -4.128128362 | H134: -3.431655067 | M134: -7.559783429
A135: 0.001440624286 | B135: -4.204677095 | H135: -3.225255745 | M135: -7.42993284
A136: 0.001451621418 | B136: -4.276885527 | H136: -3.012765043 | M136: -7.28965057
A137: 0.00146261855 | B137: -4.344679122 | H137: -2.794584281 | M137: -7.139263403
A138: 0.001473615682 | B138: -4.407987898 | H138: -2.571125527 | M138: -6.979113425
A139: 0.001484612814 | B139: -4.466746505 | H139: -2.342810817 | M139: -6.809557322
A140: 0.001495609946 | B140: -4.520894289 | H140: -2.110071356 | M140: -6.630965645
A141: 0.001506607078 | B141: -4.570375355 | H141: -1.873346708 | M141: -6.443722064
A142: 0.00151760421 | B142: -4.615138627 | H142: -1.633083964 | M142: -6.248222591
A143: 0.001528601342 | B143: -4.655137897 | H143: -1.389736896 | M143: -6.044874793
A144: 0.001539598474 | B144: -4.690331877 | H144: -1.1437651 | M144: -5.834096977
A145: 0.001550595606 | B145: -4.720684235 | H145: -0.8956331322 | M145: -5.616317368
A146: 0.001561592738 | B146: -4.746163643 | H146: -0.6458096267 | M146: -5.391973269
A147: 0.00157258987 | B147: -4.766743797 | H147: -0.3947664127 | M147: -5.16151021
A148: 0.001583587002 | B148: -4.782403454 | H148: -0.142977623 | M148: -4.925381077
A149: 0.001594584134 | B149: -4.79312645 | H149: 0.1090812014 | M149: -4.684045248
A150: 0.001605581266 | B150: -4.798901715 | H150: 0.3609340095 | M150: -4.437967705
A151: 0.001616578397 | B151: -4.799723288 | H151: 0.6121051396 | M151: -4.187618148
A152: 0.001627575529 | B152: -4.795590321 | H152: 0.8621202171 | M152: -3.933470104
A153: 0.001638572661 | B153: -4.78650708 | H153: 1.110507051 | M153: -3.676000029
A154: 0.001649569793 | B154: -4.772482941 | H154: 1.356796526 | M154: -3.415686416
A155: 0.001660566925 | B155: -4.753532381 | H155: 1.600523486 | M155: -3.153008895
A156: 0.001671564057 | B156: -4.729674962 | H156: 1.841227618 | M156: -2.888447344
A157: 0.001682561189 | B157: -4.700935311 | H157: 2.078454314 | M157: -2.622480996
A158: 0.001693558321 | B158: -4.667343093 | H158: 2.311755538 | M158: -2.355587556
A159: 0.001704555453 | B159: -4.628932986 | H159: 2.540690663 | M159: -2.088242323
A160: 0.001715552585 | B160: -4.585744638 | H160: 2.764827313 | M160: -1.820917325
A161: 0.001726549717 | B161: -4.53782263 | H161: 2.983742171 | M161: -1.554080459
A162: 0.001737546849 | B162: -4.48521643 | H162: 3.197021783 | M162: -1.288194647
A163: 0.001748543981 | B163: -4.427980342 | H163: 3.40426334 | M163: -1.023717002
A164: 0.001759541113 | B164: -4.366173447 | H164: 3.605075434 | M164: -0.761098013
A165: 0.001770538245 | B165: -4.299859546 | H165: 3.799078801 | M165: -0.5007807447
A166: 0.001781535377 | B166: -4.229107092 | H166: 3.985907038 | M166: -0.2432000543
A167: 0.001792532509 | B167: -4.15398912 | H167: 4.16520729 | M167: 0.01121817036
A168: 0.001803529641 | B168: -4.074583169 | H168: 4.336640922 | M168: 0.2620577529
A169: 0.001814526773 | B169: -3.990971209 | H169: 4.499884157 | M169: 0.508912948
A170: 0.001825523905 | B170: -3.903239547 | H170: 4.654628684 | M170: 0.7513891373
A171: 0.001836521037 | B171: -3.811478745 | H171: 4.800582246 | M171: 0.989103501
A172: 0.001847518169 | B172: -3.715783523 | H172: 4.937469187 | M172: 1.221685663
A173: 0.0018585153 | B173: -3.616252664 | H173: 5.065030976 | M173: 1.448778311
A174: 0.001869512432 | B174: -3.512988909 | H174: 5.183026692 | M174: 1.670037783
A175: 0.001880509564 | B175: -3.406098852 | H175: 5.291233485 | M175: 1.885134632
A176: 0.001891506696 | B176: -3.295692832 | H176: 5.389446987 | M176: 2.093754156
A177: 0.001902503828 | B177: -3.181884814 | H177: 5.47748171 | M177: 2.295596896
A178: 0.00191350096 | B178: -3.064792279 | H178: 5.555171386 | M178: 2.490379106
A179: 0.001924498092 | B179: -2.944536096 | H179: 5.622369285 | M179: 2.677833189
A180: 0.001935495224 | B180: -2.821240399 | H180: 5.678948496 | M180: 2.857708097
A181: 0.001946492356 | B181: -2.695032462 | H181: 5.72480216 | M181: 3.029769697
A182: 0.001957489488 | B182: -2.566042563 | H182: 5.759843674 | M182: 3.193801111
A183: 0.00196848662 | B183: -2.434403853 | H183: 5.784006858 | M183: 3.349603005
A184: 0.001979483752 | B184: -2.300252217 | H184: 5.797246077 | M184: 3.49699386
A185: 0.001990480884 | B185: -2.163726132 | H185: 5.799536325 | M185: 3.635810193
A186: 0.002001478016 | B186: -2.02496653 | H186: 5.790873278 | M186: 3.765906748
A187: 0.002012475148 | B187: -1.884116645 | H187: 5.771273297 | M187: 3.887156651
A188: 0.00202347228 | B188: -1.741321871 | H188: 5.740773399 | M188: 3.999451528
A189: 0.002034469412 | B189: -1.596729608 | H189: 5.699431188 | M189: 4.10270158
A190: 0.002045466544 | B190: -1.450489112 | H190: 5.647324745 | M190: 4.196835633
A191: 0.002056463676 | B191: -1.302751341 | H191: 5.584552481 | M191: 4.28180114
A192: 0.002067460808 | B192: -1.153668798 | H192: 5.51123295 | M192: 4.357564152
A193: 0.00207845794 | B193: -1.003395374 | H193: 5.427504628 | M193: 4.424109255
A194: 0.002089455072 | B194: -0.8520861894 | H194: 5.333525648 | M194: 4.481439459
A195: 0.002100452203 | B195: -0.6998974346 | H195: 5.229473504 | M195: 4.52957607
A196: 0.002111449335 | B196: =IF(f_1=0,U1max,U1max*SIN(2*PI()*f_1*t)) -> -0.5469862069 | H196: =U2max*SIN(2*PI()*f_2*t) -> 5.115544714 | M196: =u_1+u_2 -> 4.568558507
A197: =A196+dt_1 -> 0.002122446467 | B197: -0.3935103497 | H197: 4.991954449 | M197: 4.598444099
A198: 0.002133443599 | B198: -0.2396282894 | H198: 4.858936127 | M198: 4.619307838
A199: 0.002144440731 | B199: -0.08549887152 | H199: 4.716740975 | M199: 4.631242104
A200: 0.002155437863 | B200: 0.06871880306 | H200: 4.56563755 | M200: 4.634356353
... 1804 more rows

Sheet Feuil3 (hidden)
